bitfinex/quotes_BTCUSD_20240927
["timestamp","ask_amount","ask_price","bid_price","bid_amount"]
[1727439763240,0.56281257,65512.0,65511.0,0.00213311]
[1727439763480,0.56221257,65512.0,65511.0,0.00213311]
[1727439763736,0.56211257,65512.0,65511.0,0.00213311]
[1727439763961,0.56181257,65512.0,65511.0,0.00213311]
[1727439764467,0.56171257,65512.0,65511.0,0.00213311]
[1727439768784,0.56671257,65512.0,65511.0,0.00213311]
[1727439769045,0.63533499,65512.0,65511.0,0.00213311]
[1727439769743,0.63537446,65512.0,65511.0,0.00213311]
[1727439769982,0.63537351,65512.0,65511.0,0.00213311]
[1727439770959,0.7634532,65512.0,65511.0,0.00213311]
[1727439771212,0.69479226,65512.0,65511.0,0.00213311]
[1727439771924,0.56671257,65512.0,65511.0,0.00213311]
[1727439772194,0.56171257,65512.0,65511.0,0.00213311]
[1727439772438,0.38651257,65512.0,65511.0,0.00213311]
[1727439780453,0.23122463,65512.0,65511.0,0.00213311]
[1727439783299,0.38651257,65512.0,65511.0,0.00213311]
[1727439783567,0.56851257,65512.0,65511.0,0.00213311]
[1727439783787,0.63717351,65512.0,65511.0,0.00213311]
[1727439784002,0.6600605,65512.0,65511.0,0.00213311]
[1727439784216,0.68294748,65512.0,65511.0,0.00213311]
[1727439784959,0.56851257,65512.0,65511.0,0.00213311]
[1727439785353,0.68308392,65512.0,65511.0,0.00213311]
[1727439785811,0.56851257,65512.0,65511.0,0.00213311]
[1727439787387,0.78824512,65512.0,65511.0,0.00213311]
[1727439787650,0.78796606,65512.0,65511.0,0.00213311]
[1727439789391,0.69597761,65512.0,65511.0,0.00213311]
[1727439789845,0.81054896,65512.0,65511.0,0.00213311]
[1727439792895,0.69597761,65512.0,65511.0,0.00213311]
[1727439795182,0.78762231,65512.0,65511.0,0.00213311]
[1727439795417,0.78762178,65512.0,65511.0,0.00213311]
[1727439800076,0.78761848,65512.0,65511.0,0.00213311]
[1727439800783,0.8105287,65512.0,65511.0,0.00213311]
[1727439802337,0.78757485,65512.0,65511.0,0.00213311]
[1727439803430,0.69597761,65512.0,65511.0,0.00213311]
[1727439803639,0.78757311,65512.0,65511.0,0.00213311]
[1727439805200,0.78756615,65512.0,65511.0,0.00213311]
[1727439805645,0.69597761,65512.0,65511.0,0.00213311]
[1727439806495,0.78756615,65512.0,65511.0,0.00213311]
[1727439807586,0.78725822,65512.0,65511.0,0.00213311]
[1727439809112,0.47717853,65512.0,65511.0,0.00213311]
[1727439809340,0.38558999,65512.0,65511.0,0.00213311]
[1727439810491,0.08358163,65512.0,65511.0,0.2208128]
[1727439810734,0.059654,65512.0,65511.0,0.2208128]
[1727439810963,0.059654,65512.0,65511.0,0.09273311]
[1727439810964,0.212297,65512.0,65511.0,0.09273311]
[1727439811196,0.212297,65512.0,65511.0,0.00213311]
[1727439811419,0.184297,65512.0,65511.0,0.00113311]
[1727439811655,0.209297,65512.0,65511.0,0.00213311]
[1727439813087,0.184297,65512.0,65511.0,0.00113311]
[1727439813326,0.205297,65512.0,65511.0,0.00213311]
[1727439816925,0.20511328,65512.0,65511.0,0.00213311]
[1727439826412,0.2290391,65512.0,65511.0,0.00213311]
[1727439836477,0.38432704,65512.0,65511.0,0.00213311]
[1727439836990,0.36040122,65512.0,65511.0,0.00213311]
[1727439837710,0.34940122,65512.0,65511.0,0.00113311]
[1727439837951,0.36340122,65512.0,65511.0,0.00213311]
[1727439838203,0.34940122,65512.0,65511.0,0.00113311]
[1727439838428,0.35340122,65512.0,65511.0,0.00213311]
[1727439839167,0.36740122,65512.0,65511.0,0.00213311]
[1727439839867,0.35340122,65512.0,65511.0,0.00213311]
[1727439840128,0.36740122,65512.0,65511.0,0.00213311]
[1727439844117,0.39132914,65512.0,65511.0,0.00213311]
[1727439850272,0.51940883,65512.0,65511.0,0.00213311]
[1727439853171,0.51940883,65512.0,65511.0,0.1302128]
[1727439853172,0.21211328,65512.0,65511.0,0.1302128]
[1727439853398,0.21211328,65512.0,65511.0,0.00213311]
[1727439853631,0.36740122,65512.0,65511.0,0.00213311]
[1727439853894,0.35340122,65512.0,65511.0,0.00113311]
[1727439854113,0.36740122,65512.0,65511.0,0.00113311]
[1727439854344,0.33940122,65512.0,65511.0,0.00113311]
[1727439854886,0.36740122,65512.0,65511.0,0.00113311]
[1727439856608,0.37732835,65512.0,65511.0,0.00113311]
[1727439857088,0.55404249,65512.0,65511.0,0.00113311]
[1727439857336,0.65404249,65512.0,65511.0,0.00113311]
[1727439857589,0.74456203,65512.0,65511.0,0.00113311]
[1727439857850,0.73056203,65512.0,65511.0,0.00113311]
[1727439858601,0.74454202,65512.0,65511.0,0.00113311]
[1727439858853,0.73054202,65512.0,65511.0,0.00113311]
[1727439859100,0.74454202,65512.0,65511.0,0.00113311]
[1727439859363,0.74840031,65512.0,65511.0,0.00113311]
[1727439859614,0.63397365,65512.0,65511.0,0.00113311]
[1727439859849,0.61997365,65512.0,65511.0,0.00113311]
[1727439860333,0.63397365,65512.0,65511.0,0.00113311]
[1727439860833,0.65790418,65512.0,65511.0,0.00113311]
[1727439861293,0.63563465,65512.0,65511.0,0.00113311]
[1727439863581,0.74996553,65512.0,65511.0,0.00113311]
[1727439864044,0.77284693,65512.0,65511.0,0.00113311]
[1727439864546,0.77277359,65512.0,65511.0,0.00113311]
[1727439865261,0.63563465,65512.0,65511.0,0.00113311]
[1727439865479,0.77272599,65512.0,65511.0,0.00113311]
[1727439866405,0.63563465,65512.0,65511.0,0.00113311]
[1727439866852,0.77272599,65512.0,65511.0,1.1e-07]
[1727439868462,0.42772769,65510.0,65509.0,1.1e-07]
[1727439868679,0.58301563,65510.0,65509.0,1.1e-07]
[1727439869859,0.59701563,65510.0,65509.0,1.1e-07]
[1727439870312,0.61101563,65510.0,65509.0,1.1e-07]
[1727439871253,0.58301563,65510.0,65509.0,1.1e-07]
[1727439871474,0.73940369,65510.0,65509.0,1.1e-07]
[1727439871927,0.75340369,65510.0,65509.0,1.1e-07]
[1727439872588,0.76740369,65510.0,65509.0,1.1e-07]
[1727439878060,0.61040088,65510.0,65509.0,1.1e-07]
[1727439879395,0.48232119,65510.0,65509.0,1.1e-07]
[1727439879639,0.57222762,65510.0,65509.0,1.1e-07]
[1727439879854,0.59901563,65510.0,65509.0,1.1e-07]
[1727439880696,0.62294649,65510.0,65509.0,1.1e-07]
[1727439881569,0.61794649,65510.0,65509.0,1.1e-07]
[1727439881776,0.3915228,65510.0,65509.0,1.1e-07]
[1727439882833,0.3635228,65510.0,65509.0,1.1e-07]
[1727439883042,0.3635228,65510.0,65509.0,0.07700011]
[1727439883248,0.3915228,65510.0,65509.0,0.17540011]
[1727439883701,0.3775228,65510.0,65509.0,0.17540011]
[1727439883915,0.35359194,65510.0,65509.0,0.17540011]
[1727439884092,0.36759194,65510.0,65509.0,0.17540011]
[1727439886699,0.182655,65507.0,65506.0,0.1802]
[1727439886939,0.46602263,65507.0,65506.0,0.1802]
[1727439888027,0.48002263,65507.0,65506.0,0.1802]
[1727439889824,0.49402263,65507.0,65506.0,0.1802]
[1727439892537,0.5179527,65507.0,65506.0,0.1802]
[1727439893443,0.5179527,65507.0,65506.0,0.181028]
[1727439893878,0.49402263,65507.0,65506.0,0.181028]
[1727439898276,0.36594294,65507.0,65506.0,0.181028]
[1727439899239,0.35163605,65507.0,65506.0,0.181028]
[1727439899931,0.33763605,65507.0,65506.0,0.181028]
[1727439900192,0.35163605,65507.0,65506.0,0.181028]
[1727439900445,0.21034811,65507.0,65506.0,0.181028]
[1727439900700,0.21034811,65507.0,65506.0,0.35729975]
[1727439900701,0.058,65507.0,65506.0,0.35729975]
[1727439900953,0.058,65507.0,65506.0,0.20464275]
[1727439901425,0.044,65507.0,65506.0,0.20464275]
[1727439901679,0.058,65507.0,65506.0,0.35729975]
[1727439901947,0.058,65507.0,65506.0,0.20464275]
[1727439902191,0.044,65507.0,65506.0,0.20464275]
[1727439902439,0.054,65507.0,65506.0,0.20464275]
[1727439902911,0.152652,65509.0,65507.0,0.1753]
[1727439902912,0.03,65508.0,65507.0,0.1753]
[1727439903134,0.03,65508.0,65507.0,0.17591475]
[1727439904097,0.037,65508.0,65507.0,0.17261475]
[1727439904326,0.189653,65508.0,65507.0,0.17261475]
[1727439905515,0.197653,65508.0,65507.0,0.17261475]
[1727439905975,0.197653,65508.0,65507.0,0.17344275]
[1727439907828,0.197653,65508.0,65507.0,0.172828]
[1727439908070,0.197653,65508.0,65507.0,0.17344275]
[1727439910505,0.197653,65508.0,65507.0,0.172828]
[1727439911668,0.19734676,65508.0,65507.0,0.172828]
[1727439911879,0.19734676,65508.0,65507.0,0.17344275]
[1727439918137,0.19900276,65508.0,65507.0,0.17344275]
[1727439919319,0.04634976,65508.0,65507.0,0.45417744]
[1727439919549,0.04634976,65508.0,65507.0,0.47717744]
[1727439919772,0.04634976,65508.0,65507.0,0.34909775]
[1727439919998,0.04634976,65508.0,65507.0,0.348483]
[1727439920226,0.04634976,65508.0,65507.0,0.19644275]
[1727439920227,0.19900276,65508.0,65507.0,0.19644275]
[1727439920453,0.18400276,65508.0,65507.0,0.19644275]
[1727439920701,0.19700276,65508.0,65507.0,0.19644275]
[1727439921136,0.19000276,65508.0,65507.0,0.19644275]
[1727439922036,0.18400276,65508.0,65507.0,0.19644275]
[1727439922473,0.19500276,65508.0,65507.0,0.19644275]
[1727439922914,0.19500276,65508.0,65507.0,0.17344275]
[1727439924582,0.04234976,65508.0,65507.0,0.54435612]
[1727439924815,0.05558177,65510.0,65509.0,0.20626475]
[1727439925056,0.05558177,65510.0,65509.0,0.44880074]
[1727439925305,0.031656,65510.0,65509.0,0.44713974]
[1727439925547,0.031656,65510.0,65509.0,0.37860375]
[1727439925782,0.031656,65510.0,65509.0,0.44713974]
[1727439926226,0.001656,65510.0,65509.0,0.37860375]
[1727439926888,0.001656,65510.0,65509.0,0.44713974]
[1727439927139,0.002656,65510.0,65509.0,0.44713974]
[1727439927357,0.001656,65510.0,65509.0,0.37860375]
[1727439927577,0.001656,65510.0,65509.0,0.53689169]
[1727439927578,0.002656,65510.0,65509.0,0.53689169]
[1727439928236,0.002656,65510.0,65509.0,0.58253661]
[1727439928702,0.002656,65510.0,65509.0,0.58553661]
[1727439928911,0.003656,65510.0,65509.0,0.59153661]
[1727439929362,0.003656,65510.0,65509.0,0.54589169]
[1727439932453,0.003656,65510.0,65509.0,0.36760375]
[1727439933836,0.003656,65510.0,65509.0,0.39060375]
[1727439934758,0.003656,65510.0,65509.0,0.58586212]
[1727439935483,0.033656,65510.0,65509.0,0.58586212]
[1727439939642,0.003656,65510.0,65509.0,0.58586212]
[1727439940289,0.003656,65510.0,65509.0,0.6054611]
[1727439941687,0.003656,65510.0,65509.0,0.6062891]
[1727439942151,0.003656,65510.0,65509.0,0.76157704]
[1727439944040,0.003656,65510.0,65509.0,0.74197806]
[1727439944255,0.003656,65510.0,65509.0,0.7615477]
[1727439945172,0.003656,65510.0,65509.0,0.76155504]
[1727439949671,0.003656,65510.0,65509.0,0.74197806]
[1727439949891,0.003656,65510.0,65509.0,0.7616252]
[1727439953169,0.003656,65510.0,65509.0,0.7616534]
[1727439954795,0.003656,65510.0,65509.0,0.60636546]
[1727439956398,0.003656,65510.0,65509.0,0.65200626]
[1727439956851,0.003656,65510.0,65509.0,0.60636546]
[1727439957081,0.003656,65510.0,65509.0,0.65201765]
[1727439959275,0.003656,65510.0,65509.0,0.60636546]
[1727439959967,0.003656,65510.0,65509.0,0.60639474]
[1727439960729,0.003656,65510.0,65509.0,0.67489831]
[1727439961706,0.003656,65510.0,65509.0,0.65519369]
[1727439962030,0.003656,65510.0,65509.0,0.67490696]
[1727439962375,0.003656,65510.0,65509.0,0.60640339]
[1727439962885,0.003656,65510.0,65509.0,0.23714502]
[1727439963131,0.003656,65510.0,65509.0,0.28284836]
[1727439963867,0.003656,65510.0,65509.0,0.23714502]
[1727439964092,0.003656,65510.0,65509.0,0.28285742]
[1727439964319,0.003656,65510.0,65509.0,0.23714502]
[1727439964579,0.003656,65510.0,65509.0,0.43380072]
[1727439965066,0.003656,65510.0,65509.0,0.36521582]
[1727439965310,0.003656,65510.0,65509.0,0.43380072]
[1727439965551,0.003656,65510.0,65509.0,0.43381648]
[1727439966620,0.003656,65510.0,65509.0,0.41410321]
[1727439966864,0.003656,65510.0,65509.0,0.43385119]
[1727439967371,0.003656,65510.0,65509.0,0.36525053]
[1727439968336,0.003656,65510.0,65509.0,0.45671808]
[1727439968582,0.360604,65510.0,65509.0,0.15404353]
[1727439968834,0.360604,65510.0,65509.0,0.042828]
[1727439969089,0.51589194,65510.0,65509.0,0.042828]
[1727439970149,0.51389194,65510.0,65509.0,0.000828]
[1727439972042,0.52789194,65510.0,65509.0,0.000828]
[1727439972299,0.55181838,65510.0,65509.0,0.000828]
[1727439972539,0.56581838,65510.0,65509.0,0.001828]
[1727439974022,0.54189194,65510.0,65509.0,0.001828]
[1727439978389,0.56581846,65510.0,65509.0,0.001828]
[1727439979076,0.54189194,65510.0,65509.0,0.001828]
[1727439982976,0.386604,65510.0,65509.0,0.001828]
[1727439985291,0.41053035,65510.0,65509.0,0.001828]
[1727439990306,0.23623035,65510.0,65509.0,0.001828]
[1727439991071,0.22223035,65510.0,65509.0,0.000828]
[1727439991513,0.21923035,65510.0,65509.0,0.001828]
[1727439991662,0.23023035,65510.0,65509.0,0.002828]
[1727439994748,0.23023035,65510.0,65509.0,0.032828]
[1727439995876,0.23023035,65510.0,65509.0,0.002828]
[1727439996572,0.32853035,65510.0,65509.0,0.002828]
[1727439998281,0.68833859,65510.0,65509.0,0.002828]
[1727439998507,0.56021829,65510.0,65509.0,0.002828]
[1727439999177,0.53629194,65510.0,65509.0,0.002828]
[1727440000065,0.53629194,65510.0,65509.0,0.032828]
[1727440002506,0.56021935,65510.0,65509.0,0.032828]
[1727440002966,0.53629194,65510.0,65509.0,0.032828]
[1727440004344,0.53629194,65510.0,65509.0,0.002828]
[1727440005031,0.45989194,65510.0,65509.0,0.002828]
[1727440005254,0.206304,65510.0,65509.0,0.002828]
[1727440009081,0.23023108,65510.0,65509.0,0.002828]
[1727440009711,0.206304,65510.0,65509.0,0.002828]
[1727440012116,0.206344,65510.0,65509.0,0.002828]
[1727440019432,0.23027095,65510.0,65509.0,0.002828]
[1727440020669,0.206344,65510.0,65509.0,0.002828]
[1727440026368,0.53813194,65510.0,65509.0,0.002828]
[1727440029306,0.5620591,65510.0,65509.0,0.002828]
[1727440029512,0.53813194,65510.0,65509.0,0.002828]
[1727440031663,0.53813194,65510.0,65509.0,0.032828]
[1727440032784,0.53813194,65510.0,65509.0,0.002828]
[1727440035682,0.36163194,65510.0,65509.0,0.002828]
[1727440035906,0.206344,65510.0,65509.0,0.002828]
[1727440036346,0.23027087,65510.0,65509.0,0.002828]
[1727440037230,0.23027087,65510.0,65509.0,0.5110983]
[1727440037231,0.07762287,65510.0,65509.0,0.5110983]
[1727440037453,0.053696,65510.0,65509.0,0.5798637]
[1727440037672,0.053696,65510.0,65509.0,0.5110983]
[1727440038095,0.031696,65510.0,65509.0,0.57785645]
[1727440038303,0.031696,65510.0,65509.0,0.57783899]
[1727440038525,0.042696,65510.0,65509.0,0.5100983]
[1727440038770,0.031696,65510.0,65509.0,0.5090983]
[1727440039012,0.032696,65510.0,65509.0,0.5090983]
[1727440039223,0.002696,65510.0,65509.0,0.5090983]
[1727440039442,0.043696,65510.0,65509.0,0.7247073]
[1727440039660,0.043696,65510.0,65509.0,0.62983096]
[1727440039880,0.043696,65510.0,65509.0,0.62982841]
[1727440040104,0.043696,65510.0,65509.0,0.62882841]
[1727440040105,0.032696,65510.0,65509.0,0.62882841]
[1727440040325,0.034696,65510.0,65509.0,0.62882841]
[1727440040554,0.034696,65510.0,65509.0,0.74331477]
[1727440040796,0.032696,65510.0,65509.0,0.74331477]
[1727440041235,0.033696,65510.0,65509.0,0.75131477]
[1727440041462,0.033696,65510.0,65509.0,0.72839323]
[1727440041463,0.032696,65510.0,65509.0,0.72839323]
[1727440041675,0.032696,65510.0,65509.0,0.70550312]
[1727440041890,0.032696,65510.0,65509.0,0.70650312]
[1727440042107,0.032696,65510.0,65509.0,0.70550312]
[1727440042326,0.033696,65510.0,65509.0,0.71250312]
[1727440042592,0.033696,65510.0,65509.0,0.73539323]
[1727440042813,0.033696,65510.0,65509.0,0.64382841]
[1727440043017,0.033696,65510.0,65509.0,0.73539323]
[1727440043247,0.033696,65510.0,65509.0,0.71248905]
[1727440043462,0.033696,65510.0,65509.0,0.73539323]
[1727440043694,0.033696,65510.0,65509.0,0.73490747]
[1727440043924,0.033696,65510.0,65509.0,0.91311695]
[1727440044590,0.033696,65510.0,65509.0,0.91301413]
[1727440044810,0.033696,65510.0,65509.0,0.79863059]
[1727440045286,0.033696,65510.0,65509.0,0.9129869]
[1727440045488,0.033696,65510.0,65509.0,0.79863059]
[1727440045719,0.00147028,65512.0,65511.0,0.275646]
[1727440045967,0.00147028,65512.0,65511.0,0.77160783]
[1727440046207,0.02392318,65515.0,65511.0,0.77160783]
[1727440046208,0.02392318,65515.0,65514.0,0.157639]
[1727440046447,0.22896743,65534.0,65518.0,0.005]
[1727440046659,0.152595,65533.0,65525.0,0.3337333]
[1727440046883,0.03,65534.0,65527.0,0.205608]
[1727440047103,0.305181,65535.0,65527.0,0.205608]
[1727440047104,0.03,65532.0,65527.0,0.205608]
[1727440048473,0.03,65531.0,65527.0,0.053]
[1727440048700,0.182601,65531.0,65527.0,0.053]
[1727440048930,0.03,65531.0,65527.0,0.205608]
[1727440049360,0.182599,65531.0,65527.0,0.205608]
[1727440049572,0.03,65530.0,65527.0,0.205608]
[1727440049813,0.0555751,65528.0,65527.0,0.205608]
[1727440050311,0.0735751,65528.0,65527.0,0.207608]
[1727440054941,0.0735751,65528.0,65527.0,0.31065986]
[1727440055183,0.049656,65528.0,65527.0,0.63149594]
[1727440055442,0.049656,65528.0,65527.0,0.63649594]
[1727440055687,0.049656,65528.0,65527.0,0.70382626]
[1727440055923,0.049656,65528.0,65527.0,0.70282626]
[1727440056143,0.040656,65528.0,65527.0,0.6562166]
[1727440056377,0.041656,65528.0,65527.0,0.6642166]
[1727440056837,0.032656,65528.0,65527.0,0.6632166]
[1727440057060,0.041656,65528.0,65527.0,0.6652166]
[1727440057295,0.0338455,65528.0,65527.0,0.6652166]
[1727440057520,0.0338455,65528.0,65527.0,0.7107502]
[1727440057832,0.00147244,65536.0,65535.0,0.30559]
[1727440058044,0.00147244,65536.0,65535.0,0.76574959]
[1727440058270,0.00147244,65536.0,65535.0,0.76769824]
[1727440058975,0.00147244,65536.0,65535.0,0.76969824]
[1727440059451,0.00147244,65536.0,65535.0,0.61710824]
[1727440060634,0.00147244,65536.0,65535.0,0.61910824]
[1727440061131,0.00147244,65536.0,65535.0,0.62010824]
[1727440061385,0.00147244,65536.0,65535.0,0.6239776]
[1727440061862,0.00147244,65536.0,65535.0,0.6249776]
[1727440062074,0.00147244,65536.0,65535.0,0.6229776]
[1727440062321,0.00147244,65536.0,65535.0,0.6239776]
[1727440063795,0.00151244,65536.0,65535.0,0.6239776]
[1727440064772,0.02390995,65544.0,65541.0,0.1861203]
[1727440065015,0.02390995,65544.0,65541.0,0.44445914]
[1727440065253,0.02390995,65544.0,65541.0,0.44140824]
[1727440066006,0.02390995,65544.0,65541.0,0.44240824]
[1727440066249,0.02390995,65544.0,65541.0,0.44340824]
[1727440066500,0.002656,65542.0,65541.0,0.45340824]
[1727440066743,0.002656,65542.0,65541.0,0.45240824]
[1727440067513,0.003656,65542.0,65541.0,0.46540824]
[1727440067996,0.003656,65542.0,65541.0,0.46640824]
[1727440068717,0.003656,65542.0,65541.0,0.54240824]
[1727440068969,0.003656,65542.0,65541.0,0.63900824]
[1727440072157,0.003656,65542.0,65541.0,0.64900824]
[1727440072880,0.003696,65542.0,65541.0,0.64900824]
[1727440074998,0.003696,65542.0,65541.0,0.79680824]
[1727440075414,0.003696,65542.0,65541.0,0.84213346]
[1727440075638,0.02390995,65544.0,65543.0,0.037]
[1727440075856,0.001656,65547.0,65544.0,0.159]
[1727440076115,0.001656,65547.0,65546.0,0.2871203]
[1727440076339,0.001656,65547.0,65546.0,0.61465873]
[1727440076568,0.001656,65547.0,65546.0,0.61160824]
[1727440077290,0.001656,65554.0,65553.0,0.1581203]
[1727440077520,0.001656,65554.0,65553.0,0.43945868]
[1727440077750,0.001656,65554.0,65553.0,0.43640824]
[1727440079157,0.001656,65554.0,65553.0,0.44040824]
[1727440079852,0.001656,65554.0,65553.0,0.44340824]
[1727440080072,0.001656,65554.0,65553.0,0.62730824]
[1727440080296,0.001656,65554.0,65553.0,0.62630824]
[1727440081019,0.001656,65554.0,65553.0,0.6302527]
[1727440081482,0.001656,65554.0,65553.0,0.4523527]
[1727440083834,0.001656,65554.0,65553.0,0.4533527]
[1727440084072,0.001656,65568.0,65561.0,0.2811203]
[1727440084327,0.001656,65568.0,65565.0,0.1811203]
[1727440084562,0.001656,65568.0,65565.0,0.18417036]
[1727440084816,0.001656,65568.0,65567.0,0.03]
[1727440085051,0.001656,65568.0,65567.0,0.05604989]
[1727440085304,0.001656,65568.0,65567.0,0.31133783]
[1727440085795,0.0934,65580.0,65571.0,0.005]
[1727440086065,0.0934,65580.0,65575.0,0.053]
[1727440086066,0.22891153,65579.0,65575.0,0.053]
[1727440086299,0.0769,65582.0,65575.0,0.053]
[1727440086300,0.0769,65582.0,65575.0,0.31133742]
[1727440086531,0.0987,65585.0,65575.0,0.31133742]
[1727440086987,0.0987,65585.0,65575.0,0.30828794]
[1727440087490,0.0987,65585.0,65575.0,0.31228794]
[1727440087939,0.0987,65585.0,65575.0,0.30828794]
[1727440088411,0.002656,65576.0,65575.0,0.31828794]
[1727440088635,0.002656,65576.0,65575.0,0.32928794]
[1727440088636,0.003656,65576.0,65575.0,0.32928794]
[1727440090455,0.003656,65576.0,65575.0,0.51008794]
[1727440090694,0.003656,65576.0,65575.0,0.57803533]
[1727440090936,0.003656,65576.0,65575.0,0.51008794]
[1727440091166,0.003656,65576.0,65575.0,0.60467804]
[1727440091636,0.003656,65576.0,65575.0,0.41438598]
[1727440091868,0.003656,65576.0,65575.0,0.53035045]
[1727440092095,0.003656,65576.0,65575.0,0.46240824]
[1727440092338,0.003656,65576.0,65575.0,0.53035045]
[1727440092566,0.003656,65576.0,65575.0,0.52899364]
[1727440093724,0.003656,65576.0,65575.0,0.57428697]
[1727440093951,0.003656,65576.0,65575.0,0.52899364]
[1727440094403,0.003696,65576.0,65575.0,0.52899364]
[1727440096210,0.003696,65576.0,65575.0,0.33428794]
[1727440096440,0.003696,65576.0,65575.0,0.52899364]
[1727440097332,0.003696,65576.0,65575.0,0.52399364]
[1727440097998,0.003696,65576.0,65575.0,1.02399364]
[1727440102843,0.003696,65576.0,65575.0,1.06934033]
[1727440103071,0.003696,65576.0,65575.0,1.02399364]
[1727440103536,0.003696,65576.0,65575.0,1.06934033]
[1727440104000,0.003696,65576.0,65575.0,1.02399364]
[1727440104483,0.003696,65576.0,65575.0,1.17649064]
[1727440105953,0.095996,65576.0,65575.0,0.651]
[1727440106193,0.095996,65576.0,65575.0,0.703497]
[1727440106194,0.003696,65576.0,65575.0,0.703497]
[1727440106656,0.002696,65576.0,65575.0,0.693497]
[1727440106865,0.001696,65576.0,65575.0,0.682497]
[1727440107087,0.001696,65576.0,65575.0,0.684497]
[1727440107288,0.001696,65576.0,65575.0,0.707497]
[1727440107497,0.001696,65576.0,65575.0,0.805497]
[1727440107950,0.002696,65576.0,65575.0,0.805497]
[1727440108575,0.002696,65576.0,65575.0,0.96578494]
[1727440109041,0.002696,65576.0,65575.0,1.16049064]
[1727440109703,0.001696,65576.0,65575.0,1.15549064]
[1727440109930,0.001696,65576.0,65575.0,1.15849064]
[1727440110149,0.001696,65576.0,65575.0,1.15749064]
[1727440110432,0.001696,65576.0,65575.0,1.16749064]
[1727440110658,0.001696,65576.0,65575.0,1.26389064]
[1727440110885,0.001696,65576.0,65575.0,1.26889064]
[1727440111801,0.001696,65576.0,65575.0,1.26789064]
[1727440112029,0.001696,65576.0,65575.0,1.16949064]
[1727440114297,0.001696,65576.0,65575.0,1.10256848]
[1727440116167,0.001696,65576.0,65575.0,1.09756848]
[1727440117075,0.001696,65576.0,65575.0,0.96978494]
[1727440117297,0.001696,65576.0,65575.0,1.09756848]
[1727440118455,0.001696,65576.0,65575.0,0.94228054]
[1727440121789,0.001696,65576.0,65575.0,0.814497]
[1727440122699,0.001696,65576.0,65575.0,0.809497]
[1727440123378,0.001696,65576.0,65575.0,0.806497]
[1727440126079,0.082596,65576.0,65575.0,0.654]
[1727440126309,0.23509,65576.0,65575.0,0.631]
[1727440126543,0.082596,65576.0,65575.0,0.631]
[1727440126779,0.082596,65576.0,65575.0,0.783497]
[1727440127244,0.082596,65576.0,65575.0,0.782497]
[1727440127478,0.085596,65576.0,65575.0,0.782497]
[1727440127697,0.085596,65576.0,65575.0,0.805497]
[1727440127930,0.086596,65576.0,65575.0,0.805497]
[1727440128407,0.085596,65576.0,65575.0,0.805497]
[1727440128637,0.004696,65576.0,65575.0,0.805497]
[1727440128862,0.004696,65576.0,65575.0,0.85115027]
[1727440129473,0.004696,65576.0,65575.0,0.805497]
[1727440129699,0.005696,65576.0,65575.0,0.805497]
[1727440130246,0.001696,65576.0,65575.0,0.806497]
[1727440130583,0.001696,65576.0,65575.0,0.87497271]
[1727440131532,0.001696,65576.0,65575.0,0.806497]
[1727440131939,0.001696,65576.0,65575.0,0.89781915]
[1727440132154,0.001696,65576.0,65575.0,0.806497]
[1727440132351,0.001696,65576.0,65575.0,0.87497523]
[1727440132550,0.001696,65576.0,65575.0,0.806497]
[1727440133351,0.001696,65576.0,65575.0,0.87497523]
[1727440133790,0.001696,65576.0,65575.0,0.806497]
[1727440134377,0.001696,65576.0,65575.0,0.85215222]
[1727440135046,0.001696,65576.0,65575.0,0.806497]
[1727440135757,0.001696,65576.0,65575.0,0.85215222]
[1727440136143,0.001696,65576.0,65575.0,0.806497]
[1727440139664,0.101096,65576.0,65575.0,0.806497]
[1727440140384,0.101096,65576.0,65575.0,0.805497]
[1727440140632,0.102096,65576.0,65575.0,0.805497]
[1727440141873,0.101096,65576.0,65575.0,0.805497]
[1727440142371,0.103096,65576.0,65575.0,0.805497]
[1727440142606,0.104096,65576.0,65575.0,0.805497]
[1727440143075,0.004696,65576.0,65575.0,0.85114978]
[1727440143334,0.004696,65576.0,65575.0,0.805497]
[1727440143857,0.02859488,65576.0,65575.0,0.85116385]
[1727440144085,0.02859488,65576.0,65575.0,0.805497]
[1727440144773,0.02759488,65576.0,65575.0,0.805497]
[1727440144999,0.02559488,65576.0,65575.0,0.805497]
[1727440145217,0.02559488,65576.0,65575.0,0.85616333]
[1727440145432,0.02559488,65576.0,65575.0,0.87897618]
[1727440145641,0.02559488,65576.0,65575.0,0.810497]
[1727440146093,0.02559488,65576.0,65575.0,0.87897618]
[1727440146334,0.02559488,65576.0,65575.0,0.810497]
[1727440146965,0.02559488,65576.0,65575.0,0.87899041]
[1727440147430,0.02559488,65576.0,65575.0,0.810497]
[1727440147667,0.02559488,65576.0,65575.0,0.87899041]
[1727440150574,0.02559488,65576.0,65575.0,0.87900852]
[1727440150786,0.02559488,65576.0,65575.0,0.810497]
[1727440151000,0.02559488,65576.0,65575.0,0.87900754]
[1727440151207,0.02559488,65576.0,65575.0,0.87700754]
[1727440151421,0.02959488,65576.0,65575.0,0.805497]
[1727440151623,0.02959488,65576.0,65575.0,0.87401166]
[1727440152054,0.02859488,65576.0,65575.0,0.805497]
[1727440152274,0.02559488,65576.0,65575.0,0.806497]
[1727440152493,0.02559488,65576.0,65575.0,0.89784015]
[1727440152700,0.02559488,65576.0,65575.0,0.808497]
[1727440153120,0.02559488,65576.0,65575.0,0.92268138]
[1727440153330,0.02559488,65576.0,65575.0,0.808497]
[1727440153784,0.02559488,65576.0,65575.0,0.89984001]
[1727440153989,0.02559488,65576.0,65575.0,0.90385585]
[1727440154218,0.02559488,65576.0,65575.0,0.81251147]
[1727440154910,0.02559488,65576.0,65575.0,0.90384673]
[1727440155151,0.02559488,65576.0,65575.0,0.90384893]
[1727440157796,0.02559488,65576.0,65575.0,0.808497]
[1727440158021,0.02559488,65576.0,65575.0,0.89983711]
[1727440158700,0.02559488,65576.0,65575.0,0.89984144]
[1727440159915,0.02559488,65576.0,65575.0,0.808497]
[1727440160182,0.001696,65576.0,65575.0,0.808497]
[1727440161126,0.001696,65576.0,65575.0,0.805497]
[1727440161351,0.006696,65576.0,65575.0,0.805497]
[1727440161571,0.006696,65576.0,65575.0,0.89684519]
[1727440161794,0.0954,65580.0,65575.0,0.74434819]
[1727440162021,0.0954,65580.0,65579.0,0.03]
[1727440162242,0.0954,65580.0,65576.0,0.03]
[1727440162243,0.304971,65580.0,65576.0,0.03]
[1727440162488,0.0973,65576.0,65572.0,0.26917522]
[1727440162718,0.30498,65578.0,65571.0,0.152505]